bitfinex/quotes_BTCUSD_20250814
["timestamp","ask_amount","ask_price","bid_price","bid_amount"]
[1755166668150,0.003,121530.0,121520.0,5.85081335]
[1755166669955,0.003,121530.0,121520.0,5.72473335]
[1755166670139,0.003,121530.0,121520.0,5.85081335]
[1755166671120,0.003,121530.0,121520.0,5.84981335]
[1755166672645,0.003,121530.0,121520.0,5.84963324]
[1755166673306,0.01824493,121530.0,121520.0,5.84963324]
[1755166673751,0.003,121530.0,121520.0,5.84963324]
[1755166676496,0.003,121530.0,121520.0,5.84959324]
[1755166676869,0.003,121530.0,121520.0,5.93616324]
[1755166678168,0.003,121530.0,121520.0,5.93716324]
[1755166678769,0.003,121530.0,121520.0,5.81112324]
[1755166679083,0.003,121530.0,121520.0,5.93816324]
[1755166679402,0.003,121530.0,121520.0,5.81212324]
[1755166679613,0.00608,121530.0,121520.0,5.93716324]
[1755166679818,0.00608,121530.0,121520.0,5.93816324]
[1755166680020,0.003,121530.0,121520.0,5.93816324]
[1755166681508,0.003,121530.0,121520.0,5.81212324]
[1755166681718,0.003,121530.0,121520.0,5.93816324]
[1755166682147,0.003,121530.0,121520.0,6.13544324]
[1755166682371,0.01829887,121530.0,121520.0,6.13544324]
[1755166683593,0.01829887,121530.0,121520.0,6.00940324]
[1755166683795,0.01829887,121530.0,121520.0,6.13540324]
[1755166687069,0.01829887,121530.0,121520.0,6.32639067]
[1755166687390,0.01833909,121530.0,121520.0,6.32639067]
[1755166693336,0.01834254,121530.0,121520.0,6.32639067]
[1755166693983,0.01834254,121530.0,121520.0,6.32635067]
[1755166695433,0.01834254,121530.0,121520.0,6.13536324]
[1755166697320,0.003,121530.0,121520.0,6.13536324]
[1755166700082,0.003,121530.0,121520.0,6.00940324]
[1755166700284,0.00806,121530.0,121520.0,6.13532324]
[1755166701176,0.003,121530.0,121520.0,6.13532324]
[1755166701712,0.003,121530.0,121520.0,6.37176788]
[1755166702720,0.006,121530.0,121520.0,6.37176788]
[1755166703357,0.003,121530.0,121520.0,6.24584788]
[1755166703989,0.006,121530.0,121520.0,6.37176788]
[1755166705064,0.00806,121530.0,121520.0,6.37176788]
[1755166705819,0.00806,121530.0,121520.0,6.13532324]
[1755166707732,0.003,121530.0,121520.0,6.13532324]
[1755166707940,0.003,121530.0,121520.0,6.00940324]
[1755166708165,0.003,121540.0,121530.0,0.65162743]
[1755166708370,0.003,121540.0,121530.0,5.93774371]
[1755166708771,0.003,121540.0,121530.0,5.81186371]
[1755166708977,0.003,121540.0,121530.0,5.93774371]
[1755166710003,0.00246,121560.0,121550.0,0.65160036]
[1755166710208,0.00246,121560.0,121550.0,6.12871251]
[1755166710637,0.00246,121560.0,121550.0,6.13471251]
[1755166712077,0.003,121570.0,121560.0,0.56501682]
[1755166712325,0.003,121570.0,121560.0,6.09637632]
[1755166712556,0.003,121570.0,121560.0,6.1326725]
[1755166712755,0.003,121570.0,121560.0,6.08430553]
[1755166713175,0.003,121570.0,121560.0,6.21018553]
[1755166714914,0.00806,121570.0,121560.0,6.08430553]
[1755166715120,0.00806,121570.0,121560.0,5.99773553]
[1755166715330,0.00806,121570.0,121560.0,6.12357553]
[1755166715536,0.00806,121570.0,121560.0,6.10553553]
[1755166715765,0.00806,121570.0,121560.0,6.12357553]
[1755166715992,0.00806,121570.0,121560.0,5.99773553]
[1755166716205,0.00806,121570.0,121560.0,5.79075871]
[1755166716411,0.00806,121570.0,121560.0,5.53653246]
[1755166716625,0.00806,121570.0,121560.0,5.86238928]
[1755166717076,0.00806,121570.0,121560.0,5.97395928]
[1755166717294,0.00806,121570.0,121560.0,6.17119928]
[1755166718058,0.00806,121570.0,121560.0,6.17925928]
[1755166718269,0.00806,121570.0,121560.0,6.41544553]
[1755166718918,0.003,121570.0,121560.0,6.28960553]
[1755166719308,0.003,121570.0,121560.0,6.41544553]
[1755166719724,0.003,121570.0,121560.0,6.28960553]
[1755166719941,0.003,121570.0,121560.0,6.41544553]
[1755166721508,0.003,121570.0,121560.0,6.28960553]
[1755166721720,0.003,121570.0,121560.0,6.31460553]
[1755166721943,0.003,121570.0,121560.0,6.44100553]
[1755166722175,0.003,121580.0,121570.0,0.65157329]
[1755166722398,0.003,121580.0,121570.0,5.89273562]
[1755166722615,0.003,121580.0,121570.0,5.76633562]
[1755166722817,0.003,121580.0,121570.0,5.89273562]
[1755166723926,0.003,121580.0,121570.0,5.89325562]
[1755166724345,0.003,121580.0,121570.0,6.12948187]
[1755166724758,0.0032,121590.0,121580.0,0.65155976]
[1755166724967,0.0032,121590.0,121580.0,5.93875604]
[1755166726238,0.1002,121600.0,121590.0,0.56497623]
[1755166726454,0.1002,121600.0,121590.0,5.77465948]
[1755166727388,0.1002,121600.0,121590.0,5.64769948]
[1755166727601,0.09198519,121600.0,121590.0,5.77465948]
[1755166727946,0.07441827,121610.0,121600.0,0.5649627]
[1755166728152,0.07441827,121610.0,121600.0,5.77460595]
[1755166728353,0.07441827,121610.0,121600.0,5.64768595]
[1755166728570,0.07441827,121610.0,121600.0,5.77460595]
[1755166728958,0.06620346,121610.0,121600.0,5.77460595]
[1755166729370,0.05799001,121610.0,121600.0,5.79925295]
[1755166729577,0.05899001,121610.0,121600.0,5.79925295]
[1755166729781,0.05077656,121610.0,121600.0,5.90177295]
[1755166730382,0.04764311,121610.0,121600.0,5.77485295]
[1755166730713,0.04764311,121610.0,121600.0,5.9215028]
[1755166731328,0.04552311,121610.0,121600.0,5.92962039]
[1755166731551,0.04256311,121610.0,121600.0,5.82018941]
[1755166731807,0.04256311,121610.0,121600.0,5.94706941]
[1755166732215,0.04256311,121610.0,121600.0,5.82018941]
[1755166732412,0.04256311,121610.0,121600.0,5.94762941]
[1755166732622,0.03434966,121610.0,121600.0,5.94758941]
[1755166732996,0.03730966,121610.0,121600.0,5.82018941]
[1755166733210,0.03942966,121610.0,121600.0,5.94762941]
[1755166733488,0.03942966,121610.0,121600.0,5.92958941]
[1755166733740,0.03942966,121610.0,121600.0,5.94766941]
[1755166734346,0.03942966,121610.0,121600.0,5.92266941]
[1755166734547,0.03942966,121610.0,121600.0,5.82018941]
[1755166735000,0.03942966,121610.0,121600.0,5.94778941]
[1755166737727,0.03942966,121610.0,121600.0,5.94786941]
[1755166737728,0.03730966,121610.0,121600.0,5.94786941]
[1755166737977,0.03434966,121610.0,121600.0,5.94786941]
[1755166738609,0.03630966,121610.0,121600.0,5.94786941]
[1755166739009,0.03630966,121610.0,121600.0,5.94886941]
[1755166739259,0.03630966,121610.0,121600.0,5.94786941]
[1755166739499,0.03630966,121610.0,121600.0,6.44634941]
[1755166739708,0.03842966,121610.0,121600.0,6.44734941]
[1755166739922,0.03342966,121610.0,121600.0,6.44730941]
[1755166740348,0.03342966,121610.0,121600.0,6.31966941]
[1755166740556,0.03342966,121610.0,121600.0,6.64438941]
[1755166741443,0.03342966,121610.0,121600.0,6.51678941]
[1755166741648,0.03342966,121610.0,121600.0,6.64442941]
[1755166742555,0.02834966,121610.0,121600.0,6.64442941]
[1755166743681,0.02834966,121610.0,121600.0,6.51678941]
[1755166743895,0.02834966,121610.0,121600.0,6.64438941]
[1755166745482,0.02834966,121610.0,121600.0,6.51678941]
[1755166745711,0.03342966,121610.0,121600.0,6.64446941]
[1755166746653,0.03130966,121610.0,121600.0,6.64446941]
[1755166746887,0.02311966,121610.0,121600.0,6.64446941]
[1755166749176,0.02613966,121610.0,121600.0,6.64446941]
[1755166749901,0.02113966,121610.0,121600.0,6.64446941]
[1755166750354,0.01811966,121610.0,121600.0,6.64446941]
[1755166751381,0.01811966,121610.0,121600.0,6.51678941]
[1755166751619,0.02113966,121610.0,121600.0,6.64438941]
[1755166751843,0.02321966,121610.0,121600.0,6.64438941]
[1755166755441,0.02034075,121610.0,121600.0,6.64438941]
[1755166756450,0.01534075,121610.0,121600.0,6.64438941]
[1755166756663,0.01326075,121610.0,121600.0,6.51678941]
[1755166756873,0.01024075,121610.0,121600.0,6.64438941]
[1755166757289,0.00524075,121610.0,121600.0,6.64438941]
[1755166758159,0.00524075,121610.0,121600.0,6.64538941]
[1755166758390,0.00826075,121610.0,121600.0,6.64538941]
[1755166758608,0.01034075,121610.0,121600.0,6.64338941]
[1755166759052,0.01034075,121610.0,121600.0,6.64638941]
[1755166759268,0.01034075,121610.0,121600.0,6.64438941]
[1755166759480,0.01034075,121610.0,121600.0,6.64638941]
[1755166760526,0.01034075,121610.0,121600.0,6.89902566]
[1755166760737,0.01034075,121610.0,121600.0,6.88257566]
[1755166761375,0.01034075,121610.0,121600.0,6.96897566]
[1755166762132,0.00524075,121610.0,121600.0,6.96897566]
[1755166762310,0.00257468,121610.0,121600.0,6.96893566]
[1755166762860,0.00622,121620.0,121610.0,0.56494917]
[1755166763070,0.0083,121620.0,121610.0,5.77523242]
[1755166763495,0.0083,121620.0,121610.0,5.64767242]
[1755166763726,0.0083,121620.0,121610.0,5.78180042]
[1755166763937,0.0083,121620.0,121610.0,5.79984042]
[1755166764155,0.0083,121620.0,121610.0,5.78180042]
[1755166764373,0.0083,121620.0,121610.0,5.79984042]
[1755166764788,0.0083,121620.0,121610.0,5.67232042]
[1755166764997,0.0083,121620.0,121610.0,5.79984042]
[1755166765704,0.0083,121620.0,121610.0,5.80084042]
[1755166765937,0.0083,121620.0,121610.0,5.78280042]
[1755166766140,0.0083,121620.0,121610.0,5.80084042]
[1755166766348,0.0083,121620.0,121610.0,6.03698667]
[1755166766987,0.0083,121620.0,121610.0,6.01894667]
[1755166767198,0.0083,121620.0,121610.0,6.03698667]
[1755166767402,0.0083,121620.0,121610.0,5.90950667]
[1755166767821,0.0083,121620.0,121610.0,6.03694667]
[1755166767995,0.0083,121620.0,121610.0,6.03690667]
[1755166768246,0.0083,121620.0,121610.0,6.03710667]
[1755166768660,0.0083,121620.0,121610.0,5.90950667]
[1755166769084,0.0083,121620.0,121610.0,6.03710667]
[1755166770364,0.0083,121620.0,121610.0,5.90950667]
[1755166770779,0.0083,121620.0,121610.0,6.03718667]
[1755166771517,0.0083,121620.0,121610.0,5.90950667]
[1755166771745,0.0083,121620.0,121610.0,5.70200652]
[1755166771949,0.0083,121620.0,121610.0,6.01910667]
[1755166772356,0.0083,121620.0,121610.0,5.89146667]
[1755166772537,0.0083,121620.0,121610.0,6.01910667]
[1755166772945,0.0083,121620.0,121610.0,6.01810667]
[1755166774086,0.0083,121620.0,121610.0,5.89046667]
[1755166774501,0.0083,121620.0,121610.0,6.01802667]
[1755166780280,0.0083,121620.0,121610.0,5.90850667]
[1755166780485,0.0083,121620.0,121610.0,6.03598667]
[1755166780954,0.00622,121620.0,121610.0,6.03598667]
[1755166782286,0.00622,121620.0,121610.0,5.79972042]
[1755166782498,0.00825,121620.0,121610.0,5.80072042]
[1755166784618,0.0032,121620.0,121610.0,5.80064042]
[1755166785691,0.0032,121620.0,121610.0,5.67332042]
[1755166785907,0.0032,121620.0,121610.0,5.79964042]
[1755166786126,0.0032,121620.0,121610.0,5.80164042]
[1755166786714,0.0032,121620.0,121610.0,5.80264042]
[1755166787146,0.0032,121620.0,121610.0,5.80164042]
[1755166787596,0.0032,121620.0,121610.0,5.80264042]
[1755166790431,0.00635,121620.0,121610.0,5.80264042]
[1755166790848,0.00838,121620.0,121610.0,5.67532042]
[1755166791055,0.00838,121620.0,121610.0,5.65728042]
[1755166791266,0.00838,121620.0,121610.0,5.80248042]
[1755166795441,0.00838,121620.0,121610.0,5.80240042]
[1755166795794,0.00838,121620.0,121610.0,5.67532042]
[1755166796047,0.00838,121620.0,121610.0,5.80240042]
[1755166799439,0.0032,121620.0,121610.0,5.67532042]
[1755166799677,0.00635,121620.0,121610.0,5.80228042]
[1755166799920,0.00838,121620.0,121610.0,5.80228042]
[1755166800156,0.00838,121620.0,121610.0,5.67532042]
[1755166800632,0.00838,121620.0,121610.0,5.80228042]
[1755166800850,0.0032,121620.0,121610.0,5.80224042]
[1755166802786,0.0032,121620.0,121610.0,5.76948452]
[1755166803209,0.0032,121620.0,121610.0,5.89632452]
[1755166803727,0.003,121650.0,121640.0,0.56490861]
[1755166803941,0.0032,121660.0,121650.0,0.5648951]
[1755166804156,0.00021091,121660.0,121650.0,5.78213483]
[1755166804581,0.00021091,121660.0,121650.0,5.78828483]
[1755166805661,0.00021091,121660.0,121650.0,5.80507761]
[1755166806444,0.00021091,121660.0,121650.0,6.00219761]
[1755166806831,0.00021091,121660.0,121650.0,5.98540483]
[1755166807482,0.00021091,121660.0,121650.0,5.97980483]
[1755166808823,0.003,121670.0,121660.0,0.55928158]
[1755166809001,0.003,121670.0,121660.0,6.06810672]
[1755166809278,0.0032,121680.0,121670.0,0.55926807]
[1755166809490,0.0032,121680.0,121670.0,5.76875132]
[1755166810136,0.0032,121680.0,121670.0,5.64839132]
[1755166810362,0.0032,121680.0,121670.0,5.96665717]
[1755166811010,0.0032,121680.0,121670.0,5.83989717]
[1755166811283,0.0032,121680.0,121670.0,5.96657717]
[1755166811708,0.00531,121680.0,121670.0,5.96657717]
[1755166811928,0.00851,121680.0,121670.0,5.96657717]
[1755166813200,0.00851,121680.0,121670.0,5.82244815]
[1755166813407,0.00851,121680.0,121670.0,5.94912815]
[1755166813604,0.00851,121680.0,121670.0,5.96657717]
[1755166814821,0.00851,121680.0,121670.0,5.96653717]
[1755166815677,0.00851,121680.0,121670.0,5.96649717]
[1755166816219,0.0032,121680.0,121670.0,5.96649717]
[1755166816432,0.0032,121680.0,121670.0,5.96653717]
[1755166816641,0.0032,121680.0,121670.0,5.98525323]
[1755166817804,0.0032,121680.0,121670.0,5.96653717]
[1755166818751,0.00851,121680.0,121670.0,6.41495717]
[1755166819484,0.0032,121680.0,121670.0,6.41491717]
[1755166819895,0.0032,121680.0,121670.0,6.41543717]
[1755166820943,0.0032,121680.0,121670.0,6.28839717]
[1755166821154,0.0032,121680.0,121670.0,6.43247221]
[1755166821798,0.0032,121680.0,121670.0,6.30543221]
[1755166822005,0.0032,121680.0,121670.0,6.43243221]
[1755166822209,0.0032,121680.0,121670.0,6.41539717]
[1755166822686,0.00851,121680.0,121670.0,5.69689717]
[1755166822895,0.00851,121680.0,121670.0,5.67944815]
[1755166823102,0.00851,121680.0,121670.0,6.16385717]
[1755166823306,0.00851,121680.0,121670.0,5.82385717]
[1755166823513,0.00851,121680.0,121670.0,5.97235132]
[1755166824767,0.00851,121680.0,121670.0,5.97231132]
[1755166824981,0.00851,121680.0,121670.0,5.64357227]
[1755166825189,0.03186,121680.0,121670.0,5.75304325]
[1755166825418,0.03186,121680.0,121670.0,5.62612325]
[1755166825602,0.03186,121680.0,121670.0,5.77049227]
[1755166825943,0.09870771,121680.0,121670.0,3.77297425]
[1755166826157,0.09870771,121680.0,121670.0,1.86348225]
[1755166826394,0.26307325,121680.0,121670.0,1.99040225]
[1755166826610,0.26307325,121680.0,121670.0,2.38549547]
[1755166827684,0.26307325,121680.0,121670.0,1.75039025]
[1755166827900,0.26307325,121680.0,121670.0,1.58322225]
[1755166828325,0.26307325,121680.0,121670.0,1.27695125]
[1755166828531,0.19622554,121680.0,121670.0,1.27695125]
[1755166828842,0.19822554,121680.0,121670.0,1.27695125]
[1755166829598,0.19822554,121680.0,121670.0,1.15003125]
[1755166829771,0.19822554,121680.0,121670.0,1.27695125]
[1755166830008,0.19822554,121680.0,121670.0,0.80660125]
[1755166830203,0.19822554,121680.0,121670.0,0.89020925]
[1755166830436,0.68071876,121680.0,121670.0,0.76332925]
[1755166830583,0.19822554,121680.0,121670.0,0.89020925]
[1755166832365,0.19822554,121680.0,121670.0,0.76332925]
[1755166832705,0.19822554,121680.0,121670.0,0.89012925]
[1755166832907,0.69327876,121680.0,121670.0,0.62612325]
[1755166833116,0.69327876,121680.0,121670.0,0.74804325]
[1755166834822,0.69127876,121680.0,121670.0,0.74804325]
[1755166835046,0.69427876,121680.0,121670.0,0.74804325]
[1755166835678,0.69427876,121680.0,121670.0,0.61972325]
[1755166836020,0.69427876,121680.0,121670.0,0.66596]
[1755166836218,0.69427876,121680.0,121670.0,0.537]
[1755166836693,0.21178554,121680.0,121670.0,0.66596]
[1755166836862,0.69427876,121680.0,121670.0,0.66596]
[1755166839385,0.69427876,121680.0,121670.0,0.537]
[1755166839589,0.69427876,121680.0,121670.0,0.32584]
[1755166840559,0.69627876,121680.0,121670.0,0.66584]
[1755166841517,0.69327876,121680.0,121670.0,0.66584]
[1755166841764,0.69727876,121680.0,121670.0,0.66584]
[1755166841965,0.77976319,121680.0,121670.0,0.197]
[1755166842173,0.77976319,121680.0,121670.0,0.32576]
[1755166842593,1.04566319,121680.0,121670.0,0.32576]
[1755166843002,1.04566319,121680.0,121670.0,0.32572]
[1755166843597,0.96317876,121680.0,121670.0,0.32572]
[1755166845745,0.98783376,121680.0,121670.0,0.32572]
[1755166855438,0.98783376,121680.0,121670.0,0.33364494]
[1755166855851,0.96448376,121680.0,121670.0,0.33332494]
[1755166856331,0.93982876,121680.0,121670.0,0.33332494]
[1755166856526,0.93982876,121680.0,121670.0,0.33324494]
[1755166859879,0.96448176,121680.0,121670.0,0.33324494]
[1755166863911,0.45202554,121680.0,121670.0,0.33300494]
[1755166864140,0.66861876,121680.0,121670.0,0.33300494]
[1755166864286,0.66861876,121680.0,121670.0,0.20492494]
[1755166864553,0.66861876,121680.0,121670.0,0.33300494]
[1755166864758,0.66461876,121680.0,121670.0,0.33300494]
[1755166864960,0.66261876,121680.0,121670.0,0.33300494]
[1755166865164,0.66461876,121680.0,121670.0,0.33300494]
[1755166865394,0.66761876,121680.0,121670.0,0.33300494]
[1755166865562,0.66561876,121680.0,121670.0,0.33300494]
[1755166865904,0.66761876,121680.0,121670.0,0.33300494]
[1755166866796,0.18512554,121680.0,121670.0,0.41560819]
[1755166867030,0.18512554,121680.0,121670.0,2.39170919]
[1755166867259,0.18512554,121680.0,121670.0,2.14490419]
[1755166867481,0.18212554,121680.0,121670.0,1.94034619]
[1755166867684,0.18212554,121680.0,121670.0,2.28034619]
[1755166867901,0.18512554,121680.0,121670.0,1.97199119]
[1755166868327,0.18012554,121680.0,121670.0,1.93478419]
[1755166868548,0.18112554,121680.0,121670.0,1.93478419]
[1755166868756,0.18312554,121680.0,121670.0,1.93478419]
[1755166869916,0.17056554,121680.0,121670.0,1.91820619]
[1755166870126,0.18312554,121680.0,121670.0,1.91820619]
[1755166872060,0.18312554,121680.0,121670.0,1.79024619]
[1755166872279,0.66561876,121680.0,121670.0,1.91808619]
[1755166872921,0.66866876,121680.0,121670.0,1.73894219]
[1755166873159,0.67081876,121680.0,121670.0,1.43238419]
[1755166873377,0.67081876,121680.0,121670.0,1.42180319]
[1755166874024,0.67074976,121680.0,121670.0,1.42180319]
[1755166875931,0.67074976,121680.0,121670.0,1.26318819]
[1755166876166,0.67074976,121680.0,121670.0,1.06638519]
[1755166876582,0.66937976,121680.0,121670.0,1.06638519]
[1755166879761,0.66937976,121680.0,121670.0,1.56638519]
[1755166881976,0.66944876,121680.0,121670.0,1.56638519]
[1755166883129,0.18695554,121680.0,121670.0,1.56638519]
[1755166883311,0.66944876,121680.0,121670.0,1.56638519]
[1755166883525,0.18695554,121680.0,121670.0,1.56638519]
[1755166883761,0.18695554,121680.0,121670.0,1.56614519]
[1755166883968,0.66424876,121680.0,121670.0,1.56614519]
[1755166884385,0.18175554,121680.0,121670.0,1.56614519]
[1755166884604,0.18175554,121680.0,121670.0,1.43870519]
[1755166884826,0.18175554,121680.0,121670.0,1.56618519]
[1755166885469,0.66729876,121680.0,121670.0,1.12764819]
[1755166885678,0.66729876,121680.0,121670.0,1.25508819]
[1755166885962,0.66944876,121680.0,121670.0,1.25508819]
[1755166887051,0.66729876,121680.0,121670.0,1.25508819]
[1755166889169,0.66944876,121680.0,121670.0,1.25508819]
[1755166889588,0.66944876,121680.0,121670.0,1.12764819]
[1755166889795,0.66944876,121680.0,121670.0,1.25504819]
[1755166892658,0.66944876,121680.0,121670.0,1.12764819]
[1755166892868,0.66944876,121680.0,121670.0,1.25488819]
[1755166894045,0.66944876,121680.0,121670.0,1.04492494]
[1755166894257,0.66944876,121680.0,121670.0,1.17208494]
[1755166894462,0.66944876,121680.0,121670.0,0.83208494]
[1755166895163,0.66944876,121680.0,121670.0,0.70492494]
[1755166895373,0.66944876,121680.0,121670.0,0.83204494]
[1755166903990,0.66944876,121680.0,121670.0,0.83184494]
[1755166904417,0.66944876,121680.0,121670.0,0.70492494]
[1755166904881,0.77578201,121680.0,121670.0,0.82392]
[1755166905094,0.77378201,121680.0,121670.0,0.82392]
[1755166905332,0.77378201,121680.0,121670.0,0.33898424]
[1755166905538,0.77778201,121680.0,121670.0,0.07510048]
[1755166905799,0.17693905,121670.0,121660.0,0.00811307]
[1755166906009,0.66145227,121670.0,121660.0,0.13503307]
[1755166906180,0.16440608,121650.0,121640.0,0.20012]
[1755166906450,0.6489193,121650.0,121640.0,0.32704]
[1755166906672,0.6519893,121650.0,121640.0,0.66704]
[1755166906896,0.6519893,121650.0,121640.0,0.54012]
[1755166907112,0.6519893,121650.0,121640.0,0.66704]
[1755166908091,0.6529893,121650.0,121640.0,0.66704]
[1755166908293,0.6655493,121650.0,121640.0,0.67508855]
[1755166908514,0.6655493,121650.0,121640.0,0.54816855]
[1755166908719,0.6655493,121650.0,121640.0,0.20816855]
[1755166909004,0.6655493,121650.0,121640.0,0.33500855]
[1755166909392,0.6655493,121650.0,121640.0,0.20816855]
[1755166909590,0.6655493,121650.0,121640.0,0.33500855]
[1755166909971,0.6675493,121650.0,121640.0,0.33500855]
[1755166910200,0.6675493,121650.0,121640.0,0.20816855]
[1755166910436,0.6665493,121650.0,121640.0,0.33496855]
[1755166911391,0.6685493,121650.0,121640.0,0.33496855]
[1755166914145,0.6685493,121650.0,121640.0,0.20816855]
[1755166914328,0.6685493,121650.0,121640.0,0.33492855]
[1755166915216,0.6685493,121650.0,121640.0,0.20816855]
[1755166915402,0.75103373,121650.0,121640.0,0.33492855]
[1755166915529,0.6685493,121650.0,121640.0,0.20816855]
[1755166915740,1.15104252,121650.0,121640.0,0.20816855]
[1755166915937,1.15104252,121650.0,121640.0,0.33488855]
[1755166916789,1.15104252,121650.0,121640.0,0.33492855]
[1755166916991,1.23352695,121650.0,121640.0,0.33492855]
[1755166917244,1.23352695,121650.0,121640.0,0.20816855]
[1755166917392,1.23352695,121650.0,121640.0,0.33492855]
[1755166918597,1.23352695,121650.0,121640.0,0.20816855]
[1755166919006,1.23352695,121650.0,121640.0,0.33492855]
[1755166919547,1.23352695,121650.0,121640.0,0.20816855]
[1755166919755,0.6685493,121650.0,121640.0,0.20816855]
[1755166919957,0.6685493,121650.0,121640.0,0.33488855]
[1755166920714,0.18605608,121650.0,121640.0,0.33488855]
[1755166920851,0.6685493,121650.0,121640.0,0.20816855]
[1755166921059,0.6685493,121650.0,121640.0,0.33488855]
[1755166921691,0.18096608,121650.0,121640.0,0.20816855]
[1755166921912,0.18096608,121650.0,121640.0,0.33484855]
[1755166922498,0.18096608,121650.0,121640.0,0.4175718]
[1755166922719,0.16840608,121650.0,121640.0,0.7576118]
[1755166922960,0.16840608,121650.0,121640.0,0.7575718]
[1755166923180,0.18096608,121650.0,121640.0,0.7575718]
[1755166923363,0.16640608,121650.0,121640.0,0.6308918]
[1755166923575,0.16640608,121650.0,121640.0,0.7575718]
[1755166923788,0.16540608,121650.0,121640.0,0.7575718]
[1755166923997,0.16640608,121650.0,121640.0,0.7575718]
[1755166924197,0.16540608,121650.0,121640.0,0.7575718]
[1755166924404,0.16440608,121650.0,121640.0,0.7575718]
[1755166926180,0.16440608,121650.0,121640.0,0.79508125]
[1755166928937,0.16440608,121650.0,121640.0,2.09442725]
[1755166929485,0.16440608,121650.0,121640.0,2.09434725]
[1755166932389,0.16440608,121650.0,121640.0,1.96774725]
[1755166932643,0.16440608,121650.0,121640.0,2.09438725]
[1755166936492,0.16440608,121650.0,121640.0,2.0568778]
[1755166941561,0.16440608,121650.0,121640.0,2.09460514]
[1755166942630,0.16975608,121650.0,121640.0,2.09460514]
[1755166942925,0.6522493,121650.0,121640.0,1.56848814]
[1755166943217,0.6522493,121650.0,121640.0,1.44188814]
[1755166943433,0.6522493,121650.0,121640.0,1.49035714]
[1755166943694,0.6522493,121650.0,121640.0,1.17530514]
[1755166944129,0.6648093,121650.0,121640.0,1.04870514]
[1755166944349,0.6648093,121650.0,121640.0,0.7574918]
[1755166946643,0.6648093,121650.0,121640.0,0.7574228]
[1755166948171,0.18015608,121650.0,121640.0,2.7666388]
[1755166948386,0.17696608,121650.0,121640.0,2.7666388]
[1755166948593,0.17696608,121650.0,121640.0,2.8458038]
[1755166952579,0.16440608,121650.0,121640.0,2.8458038]
[1755166958330,0.16960608,121650.0,121640.0,2.8458038]
[1755166960521,0.16759608,121650.0,121640.0,2.8458038]
[1755166961897,0.16960608,121650.0,121640.0,1.6146838]
[1755166962107,0.6520993,121650.0,121640.0,1.6146838]
[1755166963547,0.16960608,121650.0,121640.0,1.5171038]
[1755166963757,0.16960608,121650.0,121640.0,1.3905038]
[1755166963983,0.16960608,121650.0,121640.0,1.2602348]
[1755166964201,0.16759608,121650.0,121640.0,1.3867948]
[1755166965148,0.6520993,121650.0,121640.0,0.9940288]
[1755166965365,0.6520993,121650.0,121640.0,0.7573828]
[1755166965585,0.6646593,121650.0,121640.0,0.6308228]
[1755166965804,0.6646593,121650.0,121640.0,0.7573828]
[1755166968961,0.6646593,121650.0,121640.0,0.6308228]
[1755166969159,0.6646593,121650.0,121640.0,0.7573828]
[1755166971897,0.6646593,121650.0,121640.0,0.54809955]
[1755166972112,0.6646593,121650.0,121640.0,0.67465955]
[1755166974817,0.6646593,121650.0,121640.0,0.54809955]
[1755166975025,0.6646593,121650.0,121640.0,0.67461955]
[1755166981695,0.6646593,121650.0,121640.0,0.54809955]
[1755166981907,0.6646593,121650.0,121640.0,0.67461955]
[1755166983591,1.22963695,121650.0,121640.0,0.20809955]
[1755166983733,1.22963695,121650.0,121640.0,0.33461955]
[1755166983952,0.74714373,121650.0,121640.0,0.33461955]
[1755166984737,0.6646593,121650.0,121640.0,0.33461955]
[1755166984941,1.14715252,121650.0,121640.0,0.33461955]
[1755166985068,1.17037252,121650.0,121640.0,0.33461955]
[1755166985697,1.17037252,121650.0,121640.0,0.13749955]
[1755166985973,0.6878793,121650.0,121640.0,0.13749955]
[1755166987873,0.7292355,121650.0,121640.0,0.13749955]
[1755166988998,0.7292355,121650.0,121640.0,0.01097955]
[1755166989199,0.6878793,121650.0,121640.0,0.13749955]
[1755166989806,0.6878793,121650.0,121640.0,0.01097955]
[1755166990009,0.6646593,121650.0,121640.0,0.13749955]
[1755166992913,0.6646593,121650.0,121640.0,0.01097955]
[1755166993120,0.6646593,121650.0,121640.0,0.13749955]
[1755166994596,0.66444339,121650.0,121640.0,0.13749955]
[1755166996011,0.66444339,121650.0,121640.0,0.13745955]
[1755166996225,1.22942104,121650.0,121640.0,0.01097955]
[1755166996442,1.14693661,121650.0,121640.0,0.13745955]
[1755166998435,1.17159661,121650.0,121640.0,0.13745955]
[1755166999648,1.17159661,121650.0,121640.0,1e-08]
[1755167000028,0.17697959,121640.0,121630.0,0.003]
[1755167000199,0.74394724,121640.0,121630.0,0.12948]
[1755167000411,0.74715724,121640.0,121630.0,0.12948]
[1755167000824,0.74715724,121640.0,121620.0,0.003]
[1755167000825,0.17699311,121630.0,121620.0,0.003]
[1755167001078,0.66147633,121630.0,121620.0,0.12948]
[1755167001286,0.66468633,121630.0,121620.0,0.12948]
[1755167001502,0.74717076,121630.0,121620.0,0.12948]
[1755167002111,0.74717076,121630.0,121620.0,0.13775152]
[1755167005730,0.74717076,121630.0,121620.0,0.01127152]
[1755167006125,0.74717076,121630.0,121620.0,0.13775152]
[1755167008629,0.82989401,121630.0,121620.0,0.13775152]
[1755167009043,0.85456001,121630.0,121620.0,0.13775152]
[1755167009464,0.16444663,121620.0,121610.0,0.20016]
[1755167009659,0.16446015,121610.0,121600.0,0.003]
[1755167009900,0.64894337,121610.0,121600.0,0.12948]
[1755167010017,0.65215337,121610.0,121600.0,0.12948]
[1755167010823,0.65215337,121610.0,121600.0,0.46948]
[1755167011986,0.66471337,121610.0,121600.0,0.344]
[1755167012193,0.7471978,121610.0,121600.0,0.13048]
[1755167012435,0.7471978,121610.0,121600.0,0.13148]
[1755167012640,0.7471978,121610.0,121600.0,0.13048]
[1755167012876,0.7471978,121610.0,121600.0,0.13753692]
[1755167013287,0.7471978,121610.0,121600.0,0.13749692]
[1755167013693,0.7471978,121610.0,121600.0,0.01105692]
[1755167013831,0.7471978,121610.0,121600.0,0.13749692]
[1755167014042,0.26470458,121610.0,121600.0,0.13749692]
[1755167014249,0.65951337,121610.0,121600.0,0.13749692]
[1755167015678,0.66272337,121610.0,121600.0,0.13749692]
[1755167016160,0.17702015,121610.0,121600.0,0.09378017]
[1755167016586,0.17700663,121620.0,121600.0,0.38469385]
[1755167016791,0.17700663,121620.0,121610.0,0.20916325]
[1755167018398,0.17800663,121620.0,121610.0,0.20916325]
[1755167018859,0.001,121620.0,121610.0,1.54081942]
[1755167019074,0.001,121620.0,121610.0,1.66725942]
[1755167019286,0.16544663,121620.0,121610.0,1.37635927]
[1755167019493,0.16544663,121620.0,121610.0,1.50279927]
[1755167019671,0.16443416,121630.0,121620.0,0.34]